fUSD/lending_fUSD_20240530
["ID","MTS","AMOUNT","RATE_DAILY","PERIOD"]
[328241613,1717089472480,500.0,0.00033854,30]
[328241614,1717089472552,717.75,0.00033854,30]
[328241615,1717089472583,500.0,0.00033854,30]
[328241616,1717089472616,500.0,0.00033854,30]
[328241617,1717089472824,504.65841552,0.00033854,30]
[328241618,1717089472862,717.75,0.00033854,30]
[328241619,1717089472895,332.16211022,0.00033854,30]
[328241620,1717089472926,934.41725683,0.00033854,30]
[328241621,1717089473099,500.0,0.00033854,30]
[328241622,1717089473137,717.75,0.00033854,30]
[328241623,1717089473293,500.0,0.00033854,30]
[328241624,1717089473386,566.21,0.00033854,30]
[328241625,1717089473416,717.75,0.00033854,30]
[328241626,1717089473447,515.02643783,0.00033854,30]
[328241627,1717089473563,500.0,0.00033854,30]
[328241628,1717089473680,717.75,0.00033854,30]
[328241629,1717089473835,288.6,0.00033854,30]
[328241630,1717089473938,717.75,0.00033854,30]
[328241631,1717089474213,717.75,0.00033854,30]
[328241632,1717089474479,717.75,0.00033854,30]
[328241633,1717089474620,500.0,0.00033854,30]
[328241634,1717089474736,717.75,0.00033854,30]
[328241635,1717089474896,556.78333023,0.00033854,30]
[328241636,1717089475094,500.0,0.00033854,30]
[328241637,1717089475303,717.75,0.00033854,30]
[328241638,1717089475344,500.0,0.00033854,30]
[328241639,1717089475376,500.0,0.00033854,30]
[328241640,1717089475599,717.75,0.00033854,30]
[328241641,1717089475628,500.0,0.00033854,30]
[328241642,1717089475682,500.0,0.00033854,30]
[328241643,1717089475862,717.75,0.00033854,30]
[328241644,1717089475924,500.0,0.00033854,30]
[328241645,1717089475973,549.82004142,0.00033854,30]
[328241646,1717089476169,717.75,0.00033854,30]
[328241647,1717089476202,469.93723905,0.00033854,30]
[328241648,1717089476315,500.0,0.00033854,30]
[328241649,1717089476417,717.75,0.00033854,30]
[328241650,1717089476579,500.0,0.00033854,30]
[328241651,1717089476703,717.77996455,0.00033854,30]
[328241652,1717089476832,275.64,0.00033854,30]
[328241653,1717089477907,500.0,0.00033854,30]
[328241654,1717089478208,500.0,0.00033854,30]
[328241655,1717089478509,500.0,0.00033854,30]
[328241656,1717089478845,500.0,0.00033854,30]
[328241657,1717089479142,500.0,0.00033854,30]
[328241658,1717089479444,500.0,0.00033854,30]
[328241659,1717089479998,500.0,0.00033854,30]
[328241660,1717089480343,500.0,0.00033854,30]
[328241661,1717089480621,572.45,0.00033854,30]
[328241662,1717089481860,500.0,0.00033854,30]
[328241663,1717089482168,500.0,0.00033854,30]
[328241664,1717089482461,500.0,0.00033854,30]
[328241665,1717089482770,500.0,0.00033854,30]
[328241666,1717089483046,500.0,0.00033854,30]
[328241667,1717089483327,500.0,0.00033854,30]
[328241668,1717089483451,500.0,0.00033854,30]
[328241669,1717089483942,500.0,0.00033854,30]
[328241670,1717089483974,515.16372206,0.00033854,30]
[328241671,1717089484126,500.0,0.00033854,30]
[328241672,1717089484552,620.47,0.00033854,30]
[328241673,1717089485931,500.0,0.00033854,30]
[328241674,1717089485963,549.37851636,0.00033854,30]
[328241675,1717089486206,500.0,0.00033854,30]
[328241676,1717089486488,500.0,0.00033854,30]
[328241677,1717089486552,500.0,0.00033854,30]
[328241678,1717089486757,500.0,0.00033854,30]
[328241679,1717089486844,500.0,0.00033854,30]
[328241680,1717089487036,391.00087896,0.00033854,30]
[328241681,1717089487120,500.0,0.00033854,30]
[328241682,1717089487402,178.51243427,0.00033854,30]
[328241683,1717089487862,500.0,0.00033854,30]
[328241684,1717089488190,500.0,0.00033854,30]
[328241685,1717089488229,500.0,0.00033854,30]
[328241686,1717089488477,500.0,0.00033854,30]
[328241687,1717089488755,500.0,0.00033854,30]
[328241688,1717089488828,500.0,0.00033854,30]
[328241689,1717089489014,500.0,0.00033854,30]
[328241690,1717089489138,500.0,0.00033854,30]
[328241691,1717089489293,500.0,0.00033854,30]
[328241692,1717089489397,500.0,0.00033854,30]
[328241693,1717089489553,500.0,0.00033854,30]
[328241694,1717089489710,500.0,0.00033854,30]
[328241695,1717089489766,513.77844055,0.00033854,30]
[328241696,1717089489844,500.0,0.00033854,30]
[328241697,1717089489951,500.0,0.00033854,30]
[328241698,1717089489984,946.31,0.00033854,30]
[328241699,1717089490016,513.48542591,0.00033854,30]
[328241700,1717089490109,500.0,0.00033854,30]
[328241701,1717089490214,500.0,0.00033854,30]
[328241702,1717089490261,946.31,0.00033854,30]
[328241703,1717089490406,500.0,0.00033854,30]
[328241704,1717089490478,500.0,0.00033854,30]
[328241705,1717089490546,946.31,0.00033854,30]
[328241706,1717089490664,201.45,0.00033854,30]
[328241707,1717089490787,202.8,0.00033854,30]
[328241708,1717089490822,946.31,0.00033854,30]
[328241709,1717089491094,946.31,0.00033854,30]
[328241710,1717089491386,946.31,0.00033854,30]
[328241711,1717089491699,946.31,0.00033854,30]
[328241712,1717089491799,500.0,0.00033854,30]
[328241713,1717089491951,946.31,0.00033854,30]
[328241714,1717089492055,500.0,0.00033854,30]
[328241715,1717089492299,946.31,0.00033854,30]
[328241716,1717089492373,515.5704518,0.00033854,30]
[328241717,1717089492403,500.0,0.00033854,30]
[328241718,1717089492566,946.31,0.00033854,30]
[328241719,1717089492630,500.0,0.00033854,30]
[328241720,1717089492804,500.0,0.00033854,30]
[328241721,1717089492842,946.31,0.00033854,30]
[328241722,1717089492873,500.0,0.00033854,30]
[328241723,1717089493056,500.0,0.00033854,30]
[328241724,1717089493112,500.0,0.00033854,30]
[328241725,1717089493142,946.31,0.00033854,30]
[328241726,1717089493182,500.0,0.00033854,30]
[328241727,1717089493259,476.55,0.00033854,30]
[328241728,1717089493399,500.0,0.00033854,30]
[328241729,1717089493442,946.31,0.00033854,30]
[328241730,1717089493600,500.0,0.00033854,30]
[328241731,1717089493663,500.0,0.00033854,30]
[328241732,1717089493710,946.31,0.00033854,30]
[328241733,1717089493753,500.0,0.00033854,30]
[328241734,1717089493892,310.0859198,0.00033854,30]
[328241750,1717089966789,5010.0,0.00033,90]
[328241771,1717090153208,-339.34,0.00012598,2]
[328241772,1717090153228,-1978.438858,0.00013731,2]
[328241773,1717090153249,-612.374442,0.000138,2]
[328241779,1717090231706,-209.34589343,0.000137,2]
[328241781,1717090231716,-3321.11092657,0.000138,2]
[328241783,1717090231727,-7315.13856221,0.000138,2]
[328241784,1717090231739,-1652.31001679,0.000138,2]
[328241785,1717090231750,-2146.551421,0.000138,2]
[328241786,1717090231779,-2765.1227802,0.000138,2]
[328241787,1717090231790,-4579.69176715,0.000138,2]
[328241788,1717090231850,-672.29162,0.000138,2]
[328241789,1717090231862,-55745.0983465,0.000138,2]
[328241790,1717090231919,-9515.95111758,0.000138,2]
[328241791,1717090231930,-659.5783,0.000138,2]
[328241792,1717090231939,-500.0,0.00013888,2]
[328241793,1717090231949,-600.94291246,0.000139,2]
[328241794,1717090231958,-500.0,0.000139,2]
[328241795,1717090231967,-1000.0,0.000139,2]
[328241796,1717090231976,-5034.78413096,0.000139,2]
[328241797,1717090231988,-10573.8407,0.000139,2]
[328241798,1717090232000,-33892.49999999,0.000139,2]
[328241799,1717090232011,-37030.31771405,0.000139,2]
[328241800,1717090232023,-2307.44308,0.000139,2]
[328241801,1717090232060,-4888.32200251,0.000139,2]
[328241807,1717090238923,-251.0223108,0.000139,2]
[328241808,1717090238936,-6063.69679701,0.000139,2]
[328241809,1717090238947,-1970.55414138,0.000139,2]
[328241810,1717090238959,-43969.14240846,0.000139,2]
[328241811,1717090238970,-351.92,0.000139,2]
[328241812,1717090238982,-23000.0,0.000139,2]
[328241813,1717090239134,-75666.45671484,0.000139,2]
[328241814,1717090239144,-150.55289131,0.000139,2]
[328241815,1717090239155,-165.42920419,0.000139,2]
[328241816,1717090239164,-402.7355,0.0001393,2]
[328241817,1717090239174,-228.26,0.00013973,2]
[328241818,1717090239186,-153.27,0.0001399,2]
[328241819,1717090239196,-218.8764611,0.0001399,2]
[328241820,1717090239207,-351.16,0.00013998,2]
[328241821,1717090239217,-3640.44518064,0.00013999,2]
[328241822,1717090239227,-7105.65349144,0.00014,2]
[328241824,1717090239239,-2007.19799948,0.00014,2]
[328241826,1717090239252,-690.56,0.00014,2]
[328241828,1717090239263,-34375.25928854,0.00014,2]
[328241830,1717090239275,-12129.45933,0.00014,2]
[328242020,1717090244029,-5619.8362805,0.00014,2]
[328242021,1717090244042,-17803.25000001,0.00014,2]
[328242022,1717090244054,-20234.69999998,0.00014,2]
[328242023,1717090244066,-130241.93908296,0.00014,2]
[328242024,1717090244156,-361.32,0.00014,2]
[328242025,1717090244168,-432.917,0.00014,2]
[328242026,1717090244179,-879181.87220789,0.00014,2]
[328242027,1717090244191,-22300.782624,0.00014,2]
[328242028,1717090244203,-693.17703639,0.00014,2]
[328242029,1717090244215,-5374.33140731,0.00014,2]
[328242030,1717090244226,-25046.54133337,0.00014,2]
[328242031,1717090244237,-567.75467066,0.00014,2]
[328242032,1717090244248,-1119.05332799,0.00014,2]
[328242033,1717090244259,-256.5652789,0.00014,2]
[328242034,1717090244429,-384.22752284,0.00014,2]
[328242035,1717090244524,-4580.3856386,0.00014,2]
[328242036,1717090244538,-12103.96069719,0.00014,2]
[328242037,1717090244550,-41476.84059172,0.00014,2]
[328242043,1717090245405,-312.76371324,0.000138,2]
[328242073,1717090245903,-7609.35086032,0.000138,2]
[328242090,1717090246127,-1722.85,0.000138,2]
[328242092,1717090246140,-538.73040267,0.000138,2]
[328242094,1717090246152,-346.31123997,0.000138,2]
[328242095,1717090246165,-7823.66923527,0.000138,2]
[328242259,1717090471053,5000.0,6.94e-05,2]
[328242260,1717090471077,5000.0,6.94e-05,2]
[328242261,1717090471100,5000.0,6.94e-05,2]
[328242262,1717090471123,5000.0,6.94e-05,2]
[328242263,1717090471151,3754.66537141,6.94e-05,2]
[328242318,1717091433704,-1258.92552577,0.00013,2]
[328242319,1717091433716,-1038.87691192,0.00013,2]
[328242321,1717091433728,-27702.19756231,0.00013,2]
[328242323,1717091433737,-672.48544147,0.000137,2]
[328242324,1717091433749,-132.30045853,0.000137,2]
[328242325,1717091433758,-1000.0,0.000137,2]
[328242326,1717091433768,-76068.05307151,0.000138,2]
[328242327,1717091433820,-1095.19142246,0.000138,2]
[328242328,1717091433833,-3944.62544392,0.000138,2]
[328242329,1717091433868,-992.67274111,0.000138,2]
[328242348,1717091438074,-2500.0,0.000137,2]
[328242349,1717091438084,-39580.58301913,0.000138,2]
[328242351,1717091438096,-17580.05138475,0.000138,2]
[328242353,1717091438108,-27165.90276565,0.000138,2]
[328242355,1717091438118,-500.0,0.000138,2]
[328242357,1717091438127,-77200.35353004,0.000138,2]
[328242358,1717091438136,-1000.0,0.000138,2]
[328242359,1717091438145,-500.0,0.00013888,2]
[328242360,1717091438154,-7450.72,0.000139,2]
[328242361,1717091438164,-150.55289131,0.000139,2]
[328242362,1717091438173,-323.37582512,0.000139,2]
[328242363,1717091438182,-607.14203861,0.0001391,2]
[328242364,1717091438193,-167.45503334,0.0001391,2]
[328242365,1717091438202,-153.27,0.0001399,2]
[328242366,1717091438212,-153.27,0.0001399,2]
[328242367,1717091438221,-220.46500956,0.0001399,2]
[328242368,1717091438230,-1246.52348474,0.00013998,2]
[328242369,1717091438240,-538.57414674,0.00013998,2]
[328242370,1717091438249,-1148.14675555,0.00013999,2]
[328242371,1717091438258,-151064.35843777,0.00014,2]
[328242372,1717091438271,-907.87201028,0.00014,2]
[328242374,1717091438282,-2566.84178038,0.00014,2]
[328242375,1717091438293,-13961.95190959,0.00014,2]
[328242376,1717091438305,-24707.86821903,0.00014,2]
[328242377,1717091438316,-16987.04296678,0.00014,2]
[328242378,1717091438327,-10514.80253857,0.00014,2]
[328242379,1717091438338,-1099.75854406,0.00014,2]
[328242380,1717091438349,-5542.227312,0.00014,2]
[328242381,1717091438360,-8297.8,0.00014,2]
[328242382,1717091438372,-11333.84063624,0.00014,2]
[328242384,1717091440702,-1216.421023,0.00014,2]
[328242385,1717091440810,-46259.96741003,0.00014,2]
[328242386,1717091441032,-683.76727816,0.00014,2]
[328242387,1717091441052,-383.42,0.00014,2]
[328242388,1717091441064,-5181.90756177,0.00014,2]
[328242389,1717091441735,-953.87568609,0.00014,2]
[328242402,1717091443034,-680.3546727,0.00014,2]
[328242403,1717091443045,-1310.89655929,0.00014,2]
[328242404,1717091443056,-770.20720201,0.00014,2]
[328242405,1717091443067,-580.39258057,0.00014,2]
[328242406,1717091443078,-1317.63765125,0.00014,2]
[328242408,1717091443143,-1477.83317733,0.00014,2]
[328242409,1717091443247,-2058.82675506,0.00014,2]
[328242410,1717091443287,-14.59186007,0.00014,2]
[328242411,1717091443298,-1014.6249167,0.00014,2]
[328242412,1717091443348,-627.97363223,0.00014,2]
[328242413,1717091443363,-297.95376087,0.00014,2]
[328242414,1717091443375,-293.30521316,0.00014,2]
[328242415,1717091443386,-1605.93138325,0.00014,2]
[328242416,1717091443461,-27870.49565708,0.00014,2]
[328242417,1717091443471,-500.0,0.00014,2]
[328242418,1717091443483,-500.0,0.00014,2]
[328242419,1717091443493,-500.0,0.00014,2]
[328242420,1717091443504,-500.0,0.00014,2]
[328242421,1717091443514,-500.0,0.00014,2]
[328242422,1717091443525,-500.0,0.00014,2]
[328242423,1717091443536,-500.0,0.00014,2]
[328242424,1717091443546,-572.0,0.00014,2]
[328242425,1717091443557,-500.0,0.00014,2]
[328242426,1717091443567,-500.0,0.00014,2]
[328242428,1717091443576,-500.0,0.00014,2]
[328242430,1717091443586,-500.0,0.00014,2]
[328242431,1717091443595,-571.0,0.00014,2]
[328242432,1717091443604,-1040.4552301,0.00014,2]
[328242433,1717091443613,-596904.04911275,0.00014,2]
[328242434,1717091443624,-2750.43438043,0.00014,2]
[328242435,1717091443635,-720.61822955,0.00014,2]
[328242436,1717091443646,-959.2161408,0.00014,2]
[328242437,1717091443675,-1352.6025662,0.00014,2]
[328242441,1717091446244,-513.13337588,0.00013999,2]
[328242442,1717091446254,-155.0,0.00013999,2]
[328242443,1717091446263,-644.06681603,0.00013999,2]
[328242444,1717091446273,-1810.57759947,0.00014,2]
[328242445,1717091446427,-379802.97205968,0.00014,2]
[328242446,1717091446438,-4282.34946088,0.00014,2]
[328242447,1717091446539,-155.9133629,0.00013998,2]
[328242448,1717091446549,-349.17018374,0.00014,2]
[328242449,1717091446560,-10423.56580115,0.00014,2]
[328242450,1717091446571,-422.91126348,0.00014,2]
[328242457,1717091559138,663.76,0.00010959,2]
[328242460,1717091619819,581.57462859,0.000105,2]
[328242461,1717091619845,93.78831541,0.000105,2]
[328242462,1717091633509,4906.21168459,0.00010959,2]
[328242463,1717091633546,5000.0,0.00010959,2]
[328242464,1717091633575,5000.0,0.00010959,2]
[328242465,1717091633598,5000.0,0.00010959,2]
[328242466,1717091633621,5000.0,0.00010959,2]
[328242472,1717091855252,-481.15128798,0.00010942,2]
[328242473,1717091855278,-337.62197281,0.00010942,2]
[328242474,1717091855304,-2366.22973263,0.00010942,2]
[328242475,1717091855332,-155.0,0.00010943,2]
[328242476,1717091855359,-156.38404616,0.00010943,2]
[328242477,1717091855385,-263.37325152,0.00010943,2]
[328242478,1717091855411,-505.77306579,0.00010944,2]
[328242479,1717091855438,-4751.84088038,0.00010944,2]
[328242480,1717091855464,-624.63301407,0.00010945,2]
[328242481,1717091855491,-489.64649395,0.00010945,2]
[328242482,1717091855517,-10541.78266254,0.00010945,2]
[328242483,1717091855542,-155.0,0.00010946,2]
[328242484,1717091855569,-3852.42270098,0.00010946,2]
[328242485,1717091855594,-364.82969636,0.00010947,2]
[328242486,1717091855625,-210.60565087,0.00010947,2]
[328242487,1717091855653,-7528.77476063,0.00010947,2]
[328242488,1717091855679,-259.30849218,0.00010949,2]
[328242489,1717091855707,-326.093692,0.00010955,2]
[328242490,1717091855735,-2000.09259381,0.00010956,2]
[328242491,1717091855764,-446.07424012,0.00010957,2]
[328242492,1717091855790,-155.0,0.00010957,2]
[328242493,1717091855818,-194.4869091,0.00010957,2]
[328242494,1717091855842,-2351.41144802,0.00010957,2]
[328242495,1717091855867,-5266.27921247,0.00010957,2]
[328242496,1717091855895,-409.84120861,0.00010957,2]
[328242497,1717091855923,-938.7059888,0.00010957,2]
[328242498,1717091855954,-1380.30322781,0.00010957,2]
[328242499,1717091855980,-701.87350517,0.00010957,2]
[328242500,1717091856006,-268.32530534,0.00010957,2]
[328242501,1717091856034,-643.9738315,0.00010957,2]
[328242502,1717091856060,-5433.407838,0.00010957,2]
[328242503,1717091856085,-292.31917088,0.00010957,2]
[328242504,1717091856110,-523.91853483,0.00010957,2]
[328242505,1717091856136,-180.0,0.00010957,2]
[328242506,1717091856161,-527.19686875,0.00010957,2]
[328242507,1717091856187,-200.87999732,0.00010957,2]
[328242508,1717091856213,-283.12482256,0.00010957,2]
[328242509,1717091856239,-781.15428773,0.00010957,2]
[328242510,1717091856265,-205.63826311,0.00010957,2]
[328242511,1717091856288,-155.97820346,0.00010957,2]
[328242512,1717091856316,-27015.9937501,0.00010957,2]
[328242513,1717091856343,-1273.86928001,0.00010958,2]
[328242514,1717091856606,-601.71205611,0.00010958,2]
[328242515,1717091856643,-187.57274117,0.00010958,2]
[328242516,1717091856669,-229970.39531437,0.00010959,2]
[328242518,1717091969348,-5000.0,0.00010757,2]
[328242519,1717091970523,-5000.0,0.00010757,2]
[328242520,1717091971066,-4601.36098732,0.00010757,2]
[328242521,1717091971087,-200.02976919,0.00010957,2]
[328242522,1717091971107,-198.60924349,0.00010957,2]
[328242524,1717091971663,-64.70892497,0.00010957,2]
[328242525,1717091971684,-156.15744793,0.00010957,2]
[328242526,1717091971710,-259.03047317,0.00010957,2]
[328242527,1717091971733,-481.15128798,0.00010957,2]
[328242528,1717091971757,-4038.95186595,0.00010957,2]
[328242529,1717091972575,-1449.28511144,0.00010957,2]
[328242530,1717091972596,-3550.71488856,0.00010958,2]
[328242531,1717091973378,-1279.28842039,0.00010958,2]
[328242532,1717091973399,-358.74998319,0.00010958,2]
[328242533,1717091973421,-536.55046432,0.00010958,2]
[328242534,1717091973442,-505.77306579,0.00010958,2]
[328242535,1717091973465,-2319.63806631,0.00010959,2]
[328242536,1717091974406,-3748.54443283,0.00010959,2]
[328242538,1717091991693,-807.41,0.00011717,2]
[328242539,1717091995550,444.04556717,0.00010959,2]
[328242541,1717092050179,-210.60565087,0.00010958,2]
[328242542,1717092050204,-4789.39434913,0.00010959,2]
[328242543,1717092051055,-5000.0,0.00010959,2]
[328242544,1717092051914,-5000.0,0.00010959,2]
[328242545,1717092052848,-5000.0,0.00010959,2]
[328242546,1717092053996,-5000.0,0.00010959,2]
[328242547,1717092054882,-5000.0,0.00010959,2]
[328242548,1717092055688,-5000.0,0.00010959,2]
[328242549,1717092057041,-5000.0,0.00010959,2]
[328242550,1717092057985,-5000.0,0.00010959,2]
[328242551,1717092069001,-211.05225647,0.00010958,2]
[328242552,1717092069027,-1768.51774353,0.00010959,2]
[328242558,1717092266275,-767.03,0.00010739,2]
[328242559,1717092266300,-1299.84451728,0.00010758,2]
[328242560,1717092266325,-267.98849398,0.00010759,2]
[328242561,1717092266349,-1355.63104576,0.00010859,2]
[328242562,1717092266373,-583.69889785,0.00010949,2]
[328242563,1717092266400,-94725.80704513,0.00010959,2]
[328242565,1717092547240,-624.1122,0.00010309,2]
[328242566,1717092547261,-313.9335661,0.00010409,2]
[328242567,1717092547285,-503.85960699,0.0001041,2]
[328242568,1717092547308,-99596.58213388,0.00010959,2]
[328242569,1717092547330,-19751.57634227,0.00010959,2]
[328242570,1717092547363,-564.53,0.00012427,2]
[328242571,1717092547387,-500.0,0.00012446,2]
[328242572,1717092547409,-2945.14615076,0.00012479,2]
[328242573,1717092554166,-596.82384924,0.00012479,2]
[328242574,1717092554192,-3363.24285076,0.0001255,2]
[328242575,1717092569107,-814.87341175,0.00010959,2]
[328242576,1717092570137,-1913.82320664,0.00010959,2]
[328242577,1717092570159,-1016.33599336,0.0001255,2]
[328242578,1717092572153,-7202.8418,0.0001255,2]
[328242590,1717092632598,-3682.03172911,0.0001255,2]
[328242591,1717092632610,-1073.74607988,0.0001255,2]
[328242592,1717092632622,-4899.31154689,0.0001255,2]
[328242593,1717092632631,-250.0,0.00012563,2]
[328242594,1717092632641,-551.24,0.00012621,2]
[328242595,1717092632651,-224.99,0.00012621,2]
[328242596,1717092632660,-1908.9,0.00012621,2]
[328242597,1717092632670,-3100.04,0.00012621,2]
[328242598,1717092632679,-167.84,0.00012657,2]
[328242599,1717092632689,-499.99,0.00012657,2]
[328242600,1717092632697,-602.11,0.00012681,2]
[328242601,1717092632707,-767.03,0.00013003,2]
[328242602,1717092632716,-162.65,0.00013014,2]
[328242603,1717092632730,-250.0,0.00013018,2]
[328242604,1717092632739,-162.65,0.0001311,2]
[328242605,1717092632748,-299.99,0.00013139,2]
[328242606,1717092632760,-162.65,0.00013207,2]
[328242607,1717092632769,-162.65,0.00013304,2]
[328242608,1717092632779,-1000.0,0.00013346,2]
[328242609,1717092632789,-162.65,0.00013401,2]
[328242610,1717092632798,-162.65,0.00013498,2]
[328242611,1717092632808,-1000.0,0.000135,2]
[328242612,1717092632817,-189.85443275,0.00013586,2]
[328242613,1717092632829,-7310.14556725,0.00013586,2]
[328242614,1717092632839,-162.65,0.00013595,2]
[328242615,1717092632848,-377.88213118,0.00013598,2]
[328242616,1717092632860,-1012.30856095,0.00013599,2]
[328242617,1717092632870,-59536.2814,0.000136,2]
[328242618,1717092632880,-322.33608892,0.000136,2]
[328242619,1717092632891,-4605.39676169,0.00013686,2]
[328242620,1717092632901,-162.65,0.00013692,2]
[328242621,1717092632912,-1345.06464522,0.00013697,2]
[328242622,1717092632925,-157.93299216,0.00013698,2]
[328242623,1717092632937,-155.0,0.00013698,2]
[328242624,1717092632946,-155.0,0.00013698,2]
[328242625,1717092632957,-622.60863794,0.00013698,2]
[328242626,1717092632966,-342.09828557,0.00013698,2]
[328242627,1717092632976,-504.0027174,0.00013698,2]
[328242628,1717092632985,-185.71018971,0.00013698,2]
[328242629,1717092632995,-2063.28525078,0.00013698,2]
[328242630,1717092633005,-2751.0,0.00013699,2]
[328242631,1717092633015,-323.51,0.00013699,2]
[328242632,1717092633025,-278.08,0.00013699,2]
[328242633,1717092633034,-288.18130188,0.00013699,2]
[328242634,1717092633043,-763.45708565,0.00013699,2]
[328242635,1717092633052,-192378.06768236,0.000137,2]
[328242636,1717092633088,-10137.88226977,0.000137,2]
[328242637,1717092633099,-888.50890406,0.000137,2]
[328242638,1717092633178,-3.11051554,0.000137,2]
[328242639,1717092633679,-734.6075021,0.000137,2]
[328242640,1717092633820,-334.62848752,0.000137,2]
[328242641,1717092633832,-754.74831959,0.000137,2]
[328242642,1717092633844,-922.53142088,0.000137,2]
[328242643,1717092633855,-1486.7837916,0.000137,2]
[328242644,1717092633866,-499.40807414,0.000137,2]
[328242645,1717092633876,-14125.31700073,0.000137,2]
[328242646,1717092633888,-2326.83793302,0.000137,2]
[328242662,1717092638210,-20407.56809869,0.000137,2]
[328242664,1717092638220,-11505.382,0.000137,2]
[328242665,1717092638233,-381.50348138,0.00013811,2]
[328242666,1717092638243,-225.22676744,0.00013859,2]
[328242667,1717092638252,-3173.74900954,0.0001386,2]
[328242668,1717092638264,-411.86496791,0.00013885,2]
[328242669,1717092638275,-500.0,0.00013888,2]
[328242670,1717092638284,-132.73189449,0.000139,2]
[328242671,1717092638296,-136.53860551,0.000139,2]
[328242672,1717092638308,-128.28619965,0.000139,2]
[328242673,1717092638321,-695.23,0.000139,2]
[328242674,1717092638333,-176.48380035,0.000139,2]
[328242675,1717092638343,-914.98319735,0.000139,2]
[328242676,1717092638352,-8045.40502423,0.000139,2]
[328242677,1717092638362,-166.51202761,0.000139,2]
[328242678,1717092638372,-150.55289131,0.000139,2]
[328242679,1717092638381,-157.12448071,0.000139,2]
[328242680,1717092638391,-153.27,0.0001399,2]
[328242681,1717092638400,-208.81790596,0.00013998,2]
[328242682,1717092638410,-3685.5348361,0.00013999,2]
[328242683,1717092638420,-56177.25916845,0.00014,2]
[328242684,1717092638431,-10357.382788,0.00014,2]
[328242685,1717092638442,-6982.6374,0.00014,2]
[328242686,1717092638454,-2319.86839981,0.00014,2]
[328242687,1717092638465,-2284.96475,0.00014,2]
[328242688,1717092638477,-1055.98696552,0.00014,2]
[328242689,1717092638488,-7738.26998734,0.00014,2]
[328242690,1717092638500,-578.64196916,0.00014,2]
[328242691,1717092638513,-751.676,0.00014,2]
[328242692,1717092638614,-532.82207945,0.00014,2]
[328242694,1717092638625,-1169.55400002,0.00014,2]
[328242700,1717092641111,-262.79677064,0.00014,2]
[328242701,1717092641122,-658.39,0.00014,2]
[328242702,1717092641133,-867.52962829,0.00014,2]
[328242703,1717092641144,-1129.35040698,0.00014,2]
[328242706,1717092643864,-46860.67726829,0.00014,2]
[328242707,1717092643877,-3704.62993327,0.00014,2]
[328242708,1717092643888,-13271.51421955,0.00014,2]
[328242709,1717092644080,-527.23534668,0.00014,2]
[328242710,1717092644289,-373.90697305,0.00014,2]
[328242712,1717092644303,-507.53028692,0.00014,2]
[328242713,1717092644315,-2659.37169153,0.00014,2]
[328242714,1717092644327,-423.95581672,0.00014,2]
[328242716,1717092644916,-23699.78980147,0.00014,2]
[328242717,1717092645481,-4567.28728259,0.00014,2]
[328242718,1717092645494,-752.06503485,0.00014,2]
[328242723,1717092646376,-999.9998995,0.00014,2]
[328242724,1717092646389,-658.82361133,0.00014,2]
[328242725,1717092646401,-621.83377566,0.00014,2]
[328242726,1717092646412,-3236.2249575,0.00014,2]
[328242727,1717092646424,-562.44851433,0.00014,2]
[328242728,1717092646435,-1129.499998,0.00014,2]
[328242730,1717092646669,-1690.38996111,0.00014,2]